Cogmind - Beta 15 @@@ ROGUE MODE // 2025.06.21 @ 20:06:01 Player: CrossedViper Result: Destroyed by P-80 Master with Gamma Rifle Performance ------------- Evolutions (8) 4000 Regions Visited (24) 4800 Robots Destroyed (602) 3010 Value Destroyed (29199) 29199 Prototype IDs (70) 1400 Alien Tech Used (4) 800 Bonus (17170) 17170 TOTAL SCORE: 60379 Bonus ------- Triggered High Security 500 High Alert Combat Kills 7247 Follower Combat Kills 507 Network Hubs Disabled 400 Registered with UFD 300 Met Optimus in HQ 500 Met Data Miner 300 Met Zhirov 300 Met R17 at Cetus 500 Found Hidden Lab 3000 Used Core Reset Matrix 3000 Met R17 at Research 2000 Friendly Fire -1384 Cogmind --------- Core Integrity 0/1450 Matter 24/300 Energy 98/100 System Corruption 14% Temperature Cool (0) Movement Core (50) Location -2/Quarantine Parts ------- > --- POWER (4) -------- (None) > --- PROPULSION (4) --- Centrium Leg > --- UTILITY (8) ------ Advanced Target Analyzer Core Analyzer Improved Hacking Suite Improved Hacking Suite Deep Network Scanner > --- WEAPON (8) ------- (None) > --- INVENTORY (5) ---- A0-MCA's Component Scanner Rainbow Chip Subatomic Replicator Micro-nuke Launcher Peak State ------------ > --- POWER ------------ Cooled Antimatter Reactor Cooled Antimatter Reactor Cooled Antimatter Reactor > --- PROPULSION ------- Centrium Leg Heavy Shield Leg High-density Centrium Leg > --- UTILITY ---------- Advanced Power Amplifier Coolant Network Advanced Coolant Injector Huge Storage Unit Enhanced Optical Array Core Analyzer Improved Hacking Suite > --- WEAPON ----------- Enhanced Nova Cannon Enhanced Nova Cannon Enhanced Nova Cannon Enhanced Nova Cannon Enhanced Nova Cannon Enhanced Nova Cannon > --- INVENTORY -------- Cooled Antimatter Reactor Cooled Antimatter Reactor Cooled Antimatter Reactor Centrium Heavy Treads Centrium Leg Advanced Heat Sink Experimental Matter Compressor Long-range Terrain Scanner Transmission Jammer Improved Cloaking Device Improved Hacking Suite Improved Hacking Suite Advanced System Shield Authchip [Processor] A0-MCA's Component Scanner Rainbow Chip Advanced Variable Charge Gun Enhanced Nova Cannon Enhanced Nova Cannon Enhanced Nova Cannon Neutron Missile Launcher CPS Tube Plasma Lance PL-3XN's Ring of Power [Rating: 184] Favorites ----------- Power Fission Core Engine Angular Momentum Engine Power Core Fission Core Reactor Light Antimatter Reactor Propulsion High-density Centrium Leg Treads Light Treads Leg High-density Centrium Leg Wheel Subdweller Monowheel Flight Unit Experimental Q-thruster Utility Huge Storage Unit Device Advanced Heat Sink Storage Huge Storage Unit Processor Core Analyzer Hackware Improved System Shield Protection Improved Medium Armor Plating Weapon Antimatter Cannon Energy Gun Plasma Rifle Energy Cannon Heavy Plasma Cannon Ballistic Gun Heavy Machine Gun Ballistic Cannon Antimatter Cannon Launcher Micro-nuke Launcher Special Weapon CPS Tube Piercing Weapon Plasma Lance Build | -11 -10 -10 -9 -9 -6 -6 -6 -6 -5 -5 -5 -5 -5 -4 -4 -4 -4 -4 -4 -3 -3 -3 -2 -2 ------- Run | Yrd Mat Sub Rec Scr Fac Low Low Dat Pro Fac Upp Upp Zhi Pro Fac Ext Cet Arc Hub Res Arm Lab Res Qua Slots Evolved 16 | . . . . . 8 . . . . 2 . . . . 2 . . . . 2 . . 2 . Power 2 | . . . . . 1 . . . . . . . . . . . . . . 1 . . . . Propulsion 2 | . . . . . 2 . . . . . . . . . . . . . . . . . . . Utility 6 | . . . . . 4 . . . . 2 . . . . . . . . . . . . . . Weapon 6 | . . . . . 1 . . . . . . . . . 2 . . . . 1 . . 2 . Parts Attached 345 | 7 4 10 5 1 63 3 2 . 27 31 1 5 4 . 36 18 9 4 13 12 58 5 26 1 Power 55 | 1 . 2 1 . 9 . . . 4 6 . . 2 . 7 3 1 . 3 3 10 1 2 . Engine 12 | 1 . 2 1 . 2 . . . . 4 . . 1 . 1 . . . . . . . . . Core 15 | . . . . . 6 . . . 4 2 . . . . 1 . 1 . . . . . 1 . Reactor 28 | . . . . . 1 . . . . . . . 1 . 5 3 . . 3 3 10 1 1 . Propulsion 66 | 2 1 1 2 1 17 2 . . 8 2 . . . . 6 . 3 . . 1 11 2 7 . Treads 40 | 2 1 . 2 . 14 2 . . . 1 . . . . 6 . 3 . . 1 4 2 2 . Leg 20 | . . . . . . . . . 7 1 . . . . . . . . . . 7 . 5 . Wheel 5 | . . 1 . 1 3 . . . . . . . . . . . . . . . . . . . Hover . | . . . . . . . . . . . . . . . . . . . . . . . . . Flight 1 | . . . . . . . . . 1 . . . . . . . . . . . . . . . Utility 121 | 2 1 2 1 . 22 1 2 . 10 13 . 4 2 . 9 5 3 4 4 5 19 2 10 . Device 54 | 1 . . 1 . 7 . 1 . 6 3 . 1 1 . 4 3 1 4 2 5 13 . 1 . Storage 6 | 1 1 1 . . 1 . . . 1 1 . . . . . . . . . . . . . . Processor 9 | . . . . . 3 . . . 1 1 . . . . 3 . . . . . . . 1 . Hackware 13 | . . . . . . . . . . 4 . . . . 1 2 . . . . 3 1 2 . Protection 39 | . . 1 . . 11 1 1 . 2 4 . 3 1 . 1 . 2 . 2 . 3 1 6 . Artifact . | . . . . . . . . . . . . . . . . . . . . . . . . . Weapon 103 | 2 2 5 1 . 15 . . . 5 10 1 1 . . 14 10 2 . 6 3 18 . 7 1 Energy Gun 25 | 1 . 2 1 . 2 . . . 1 1 . . . . 7 . . . 3 3 1 . 3 . Energy Cannon 32 | . 1 2 . . 2 . . . 2 6 . 1 . . 1 . 1 . 2 . 11 . 2 1 Ballistic Gun 23 | 1 . 1 . . 7 . . . 1 1 . . . . 4 5 1 . . . 2 . . . Ballistic Cannon 9 | . . . . . 2 . . . . . . . . . 2 5 . . . . . . . . Launcher 12 | . 1 . . . 2 . . . . 1 1 . . . . . . . 1 . 4 . 2 . Special Weapon 1 | . . . . . . . . . 1 . . . . . . . . . . . . . . . Impact Weapon . | . . . . . . . . . . . . . . . . . . . . . . . . . Slashing Weapon . | . . . . . . . . . . . . . . . . . . . . . . . . . Piercing Weapon 1 | . . . . . . . . . . 1 . . . . . . . . . . . . . . Special Melee Weapon . | . . . . . . . . . . . . . . . . . . . . . . . . . Unidentified Prototypes 37 | . . . . . 2 1 . . 9 6 . 1 3 . 2 1 2 . 1 2 1 1 5 . Corrupted Parts 9 | . . . . . . . . . 3 . . . . . . . 2 . 1 . 3 . . . System Corruption 79 | . . . . . . . . . 28 . . . . . . . 18 . 2 . 31 . . . Parts Lost 176 | . . 7 1 . 29 1 1 . 5 9 . 3 . . 33 4 2 . 11 5 45 . 17 3 Power 32 | . . 2 1 . 3 . . . 1 3 . . . . 7 1 . . 3 1 7 . 3 . Propulsion 31 | . . 2 . . 12 1 1 . 1 . . . . . 3 . . . . . 4 . 5 2 Utility 57 | . . 1 . . 12 . . . 2 4 . 1 . . 8 1 . . 4 3 15 . 6 . Weapon 56 | . . 2 . . 2 . . . 1 2 . 2 . . 15 2 2 . 4 1 19 . 3 1 Highest Loss Streak 13 | . . 2 1 . 7 1 1 . 2 5 . 2 . . 8 1 1 . 4 3 13 . 7 3 To Critical Strikes 4 | . . 1 . . 1 . . . . . . . . . . . . . . 1 . . 1 . Average Backups 18 | . 5 10 17 16 20 23 23 24 23 22 20 20 20 21 18 21 20 19 21 20 18 6 15 3 Power 1 | . . . . . . 5 5 5 3 . 2 2 2 2 1 . . 1 . 1 1 . . . Propulsion 3 | . 1 2 6 6 3 3 2 2 1 2 4 4 4 4 5 3 4 4 3 3 2 . . . Utility 7 | . . 2 6 4 6 4 6 7 9 11 8 9 10 10 9 12 10 10 12 9 9 2 8 2 Weapon 5 | . 3 5 5 4 8 8 8 8 6 6 4 3 2 3 1 3 3 3 3 5 3 1 4 1 Tool/Special . | . . . . . . . . . . . . . . . . . . . . . . . . . Unused Backups 35 | . . 1 . 7 . 1 . . 3 1 . . . . 1 2 1 . 4 . 5 1 5 3 Power 2 | . . . . . . . . . . . . . . . 1 . . . . . 1 . . . Propulsion 7 | . . . . 3 . . . . . 1 . . . . . . . . 1 . . 1 1 . Utility 18 | . . . . 3 . 1 . . 3 . . . . . . 1 1 . 2 . 2 . 3 2 Weapon 6 | . . 1 . 1 . . . . . . . . . . . 1 . . 1 . 2 . . . Tool/Special 2 | . . . . . . . . . . . . . . . . . . . . . . . 1 1 Average Slot Usage (%) 84 | . 99 92 95 69 91 93 89 75 90 94 94 94 83 100 83 91 89 85 87 77 75 20 48 33 Engine 5 | . 14 13 13 14 1 . . . . 2 11 11 11 11 4 . . . . . . . . . Core 3 | . . . . . 6 13 13 13 12 8 . . . . . . 3 5 3 . . . 2 . Reactor 2 | . . . . . 1 . . . . . . . . . 4 9 6 5 6 11 11 . 2 . Treads 14 | . 27 27 27 18 21 22 21 20 2 . . . . . 8 15 14 10 10 9 4 4 6 3 Leg 4 | . . . . . . . . . 22 22 23 23 23 23 8 . . . . . 6 . 2 7 Wheel 1 | . . . . 9 3 3 1 6 . . . . . . . . . . . . . . . . Device 10 | . 14 7 11 14 6 13 11 6 11 17 11 11 11 11 8 10 11 11 10 9 13 1 3 . Storage 7 | . 14 12 14 12 6 6 6 6 6 5 5 5 5 5 5 5 5 5 5 4 4 1 3 . Processor 6 | . . . . . 5 6 6 6 6 9 11 11 11 11 14 15 15 15 13 9 7 4 4 8 Hackware 1 | . . . . . . . . . . 2 5 5 5 5 3 9 . . . . 1 . 5 12 Protection 4 | . . 1 . . 16 5 7 13 5 4 5 5 11 11 4 . 8 5 11 6 1 . 7 . Energy Gun 4 | . 2 8 13 . 1 . . . 1 1 4 6 1 11 8 4 . . 5 18 2 . 2 . Energy Cannon 5 | . 9 6 13 . 1 6 6 . 10 9 10 7 . 5 3 . 5 5 8 1 11 . 1 . Ballistic Gun 4 | . 14 11 . . 13 . . . . . . . . . 1 2 6 10 2 . 1 . . . Ballistic Cannon 3 | . . . . . 1 12 11 1 5 3 . . . . 2 16 10 10 7 . . . . . Peak Build Rating 184 | 7 7 12 15 13 68 75 75 74 108 128 126 130 130 130 141 129 139 139 157 158 184 94 139 81 Average Rating 73 | 4 6 9 14 11 55 73 73 58 88 119 124 124 109 129 113 122 128 131 142 143 140 41 101 65 On Entrance 85 | . 7 7 12 12 12 62 75 74 74 100 125 125 130 130 130 113 129 137 139 130 150 96 94 67 Naked Turns . | . . . . . . . . . . . . . . . . . . . . . . . . . Heaviest Build 219 | 13 29 93 95 88 144 145 154 154 154 153 153 153 150 150 175 159 168 168 179 165 219 112 169 11 Greatest Support 160 | 40 40 40 46 46 96 96 96 76 112 128 128 128 128 128 160 134 160 160 160 160 150 150 155 3 Greatest Overweight (x) 14 | . . 4 4 9 11 14 2 2 2 1 1 1 1 1 2 1 1 1 1 1 3 1 1 3 Average Overweight (x) 1 | . . . 1 2 2 2 1 1 1 . 1 . . 1 . . 1 . . . . . . . Largest Inventory Capacity 25 | 8 15 25 25 25 25 25 25 25 25 25 25 25 25 25 25 25 25 25 25 25 25 25 25 5 Average Capacity 22 | 7 11 15 25 19 24 25 25 25 25 25 25 25 25 25 25 25 25 25 25 25 25 10 21 5 Most Carried 25 | . 8 17 22 24 25 25 25 25 25 25 25 25 25 25 25 25 25 25 25 24 25 25 25 5 Average Carried 19 | . 5 10 18 17 20 24 24 25 23 24 24 24 24 25 20 22 23 22 24 23 21 7 18 3 Final Capacity 25 | 8 15 25 25 15 25 25 25 25 25 25 25 25 25 25 25 25 25 25 25 25 25 25 5 5 Final Carried 25 | . 8 15 22 15 25 24 25 25 25 25 25 25 25 25 19 25 22 25 25 24 22 25 5 4 Class Distribution -------------------- 27% | Mutant 24% | Scavenger-Tank 15% | Tank 13% | Scavenger-Mutant 6% | Gunner Dominant Class ---------------- Mutant | -10/Materials Scavenger-Mutant | -10/Subcaves Mutant | -9/Recycling Mutant | -9/Scraptown Scavenger-Tank | -6/Factory Scavenger-Tank | -6/Lower Caves Scavenger-Tank | -6/Lower Caves Scavenger-Mutant | -6/Data Miner Tank | -5/Proximity Caves Gunner | -5/Factory Tank | -5/Upper Caves Tank | -5/Upper Caves Mutant | -5/Zhirov Tank | -4/Proximity Caves Scavenger-Tank | -4/Factory Scavenger-Tank | -4/Extension Scavenger-Tank | -4/Cetus Scavenger-Tank | -4/Archives Scavenger-Tank | -4/Hub_04(d) Scavenger-Tank | -3/Research Scavenger-Executioner | -3/Armory Mutant | -3/Lab Mutant | -2/Research Hacker-Mutant | -2/Quarantine Resources | -11 -10 -10 -9 -9 -6 -6 -6 -6 -5 -5 -5 -5 -5 -4 -4 -4 -4 -4 -4 -3 -3 -3 -2 -2 ----------- Run | Yrd Mat Sub Rec Scr Fac Low Low Dat Pro Fac Upp Upp Zhi Pro Fac Ext Cet Arc Hub Res Arm Lab Res Qua Matter Collected 16444 | 264 256 435 84 67 2170 315 334 . 1405 1081 102 255 . 96 2063 3560 183 627 587 120 1770 63 607 . Remotely . | . . . . . . . . . . . . . . . . . . . . . . . . . Salvage Created 29608 | 24 488 546 138 . 3309 209 257 . 1668 2938 30 388 . 200 3596 3827 647 640 2763 270 5878 . 1739 53 Parts 1324 | 3 42 35 5 . 150 9 10 . 65 129 6 21 . 24 154 136 22 44 141 13 226 . 89 . Haulers Intercepted 18 | . 2 . . . 2 . . . 1 3 . 1 . . 3 3 . . 2 1 . . . . Recyclers Shooed 24 | . . . 1 . 12 . . . . 4 . . . . 3 . . . 2 . . . 2 . Parts Field Recycled . | . . . . . . . . . . . . . . . . . . . . . . . . . Retrieved Matter . | . . . . . . . . . . . . . . . . . . . . . . . . . Parts Self-Destructed 113 | . . 11 . . . 6 6 . 45 . 4 18 . 23 . . . . . . . . . . Prevented 24 | . . . . . . 1 4 . 18 . . . . 1 . . . . . . . . . . Kills | -11 -10 -10 -9 -9 -6 -6 -6 -6 -5 -5 -5 -5 -5 -4 -4 -4 -4 -4 -4 -3 -3 -3 -2 -2 ------- Run | Yrd Mat Sub Rec Scr Fac Low Low Dat Pro Fac Upp Upp Zhi Pro Fac Ext Cet Arc Hub Res Arm Lab Res Qua Combat Hostiles Destroyed 459 | . 14 15 2 . 49 6 7 . 29 44 5 18 . 10 54 41 8 4 30 4 89 . 30 . Melee 18 | . . . . . . . . . . . . . . . 7 . . . . . 8 . 3 . Guns 101 | . 8 3 1 . 24 . . . . 4 . 2 . 4 24 1 . 1 11 4 10 . 4 . Cannons 193 | . 1 4 1 . 10 4 4 . 16 27 . 1 . 3 18 38 3 2 18 . 34 . 9 . AOE 109 | . 5 7 . . 10 2 3 . 7 11 5 15 . 3 4 2 . . . . 24 . 11 . Classes Destroyed 25 | 1 7 3 2 . 3 . . . 5 2 . . . 1 . . . . . . 1 . . . Worker 35 | . 4 . . . 2 . . . . 10 . . . . 6 1 . . 7 . . . 5 . Builder 29 | . 1 . . . 6 . . . . 4 . . . . 4 5 . . 7 1 . . 1 . Tunneler 2 | 1 . . . . 1 . . . . . . . . . . . . . . . . . . . Hauler 18 | . 2 . . . 2 . . . 1 3 . 1 . . 3 3 . . 2 1 . . . . Recycler 18 | . . . 1 . 2 . . . . 2 . . . . 3 7 . . 2 . . . 1 . Carrier 2 | . . . . . . . . . . 1 . . . . . 1 . . . . . . . . Mechanic 6 | . . . . . . . . . 1 1 . . . . 1 . . . . . 2 . . 1 Operator 17 | . 1 . . . . . . . . 3 . . . . . 1 . 9 . . 3 . . . Drone 1 | . . . . . . . . . . . . . . 1 . . . . . . . . . . Turret 2 | . . 2 . . . . . . . . . . . . . . . . . . . . . . Watcher 13 | . 2 . . . 2 . . . . 3 . . . . . . 2 . . . 4 . . . Swarmer 95 | . 9 7 . . . 3 4 . 9 . 5 9 . 9 17 4 . . . 4 8 . 7 . Grunt 156 | . 5 . . . 30 . . . 3 20 . 8 . . 12 16 . . 18 . 36 . 8 . Brawler 10 | . . . . . . . . . 2 . . 1 . . 1 3 . . . . 3 . . . Duelist 15 | . . . . . . . . . 3 1 . . . . 1 1 . . . . 8 . 1 . Protector 5 | . . . . . . . . . 1 1 . . . . . 1 . . . . 2 . . . Sentry 41 | . . . 2 . 6 1 1 . 1 1 . . . . 7 3 . 4 4 . 9 . 2 . Demolisher 3 | . . . . . . . . . . . . . . . . . . . . . 3 . . . Specialist 11 | . . . . . . . . . 3 1 . . . . 5 . . . . . 2 . . . Hunter 38 | . . . . . 6 . 2 . 1 9 . . . . 4 9 . . . . 6 . 1 . Programmer 60 | . . . . . 6 2 . . 6 10 . . . . 6 2 . . 7 . 10 . 11 . Heavy 3 | . . . . . . . . . . 1 . . . . . . . . 1 . 1 . . . Behemoth 5 | . . . . . 1 . . . . . . . . . 1 2 . . . . 1 . . . Cetus Guard 8 | . . . . . . . . . . . . . . . . . 8 . . . . . . . Artisan 3 | . . 3 . . . . . . . . . . . . . . . . . . . . . . Subdweller 8 | . . 8 . . . . . . . . . . . . . . . . . . . . . . Best Kill Streak 18 | 1 7 6 1 . 5 3 3 . 10 18 5 6 . 5 10 7 5 3 17 2 9 . 12 1 Combat Bots Only 12 | . 5 4 1 . 5 3 3 . 9 10 5 5 . 5 7 6 4 2 10 2 8 . 12 . Max Kills in Single Turn 4 | 1 1 3 1 . 3 2 1 . 2 3 3 4 . 3 3 3 1 1 3 2 3 . 4 1 Gunslinging 1 | . . . . . . . . . . . . . . . . . . . . 1 . . . . Exploded 4 | . 1 3 . . 2 2 1 . 1 2 3 4 . 3 2 2 . . . . 3 . 4 . Melee 1 | . . . . . . . . . . . . . . . 1 . . . . . 1 . 1 . Uniques/NPCs Destroyed 1 | . . . . . . . . . . . . . . . . 1 . . . . . . . . A7 (-4/Extension) Combat | -11 -10 -10 -9 -9 -6 -6 -6 -6 -5 -5 -5 -5 -5 -4 -4 -4 -4 -4 -4 -3 -3 -3 -2 -2 -------- Run | Yrd Mat Sub Rec Scr Fac Low Low Dat Pro Fac Upp Upp Zhi Pro Fac Ext Cet Arc Hub Res Arm Lab Res Qua Hostile Shots Fired 3629 | . 46 59 20 . 613 43 54 . 182 246 17 54 . 21 627 130 31 12 220 15 634 . 560 45 Missed 1011 | . 19 23 8 . 170 21 24 . 52 63 5 17 . 5 177 45 7 2 62 2 150 . 147 12 Deflected 20 | . . . . . . . . . . . . . . . . . . . . . 20 . . . Hits 2618 | . 27 36 12 . 443 22 30 . 130 183 12 37 . 16 450 85 24 10 158 13 484 . 413 33 Melee 49 | . . . . . . . . . 3 4 . . . . 4 . . . . . 38 . . . Projectile 2569 | . 27 36 12 . 443 22 30 . 127 179 12 37 . 16 446 85 24 10 158 13 446 . 413 33 AOE 16 | . . . . . 1 . . . . . . . . . 5 . . . . . 10 . . . Critical Strikes 133 | . . 3 . . 18 . 1 . 2 14 . 3 . . 18 9 3 . 14 1 29 . 15 3 Actively Blocked 1 | . . . . . . . . . . . . . . . . . . . . . 1 . . . Part Disruptions 16 | . . . . . 2 1 . . 2 1 . . . . 7 . . . 1 . 1 . . 1 Damage Taken 53111 | . 260 650 177 . 6631 204 237 . 2232 3844 293 604 . 277 8715 2012 636 262 3673 329 11784 . 9489 802 Core 4607 | . 35 91 . . 369 9 18 . 208 204 . 96 . 18 811 95 . . 88 . 1234 . 1048 283 Absorbed by Shields 1023 | . . . . . 347 77 92 . 320 . . . . . . 187 . . . . . . . . Reduced by Siege Mode 1162 | . . . . . . . . . . . . . . . 455 144 43 7 . . 414 . 99 . Redirected to Shielding 150 | . . . . . . . . . . . . . . . 114 . . . . . 36 . . . Ignored by Resistances 954 | . . . . . 32 47 89 . 269 60 . 128 . . 329 . . . . . . . . . Regen/Repaired (Parts) 183 | . 122 . . . . . . . . 61 . . . . . . . . . . . . . . Core Remaining (%) 42 | 100 . . . 49 . . . . 28 . . . . 68 . . . . 4 . . 5 . . Volleys Fired 1242 | 3 77 63 12 . 222 18 15 . 57 126 7 20 . 12 131 87 29 55 63 6 173 . 64 2 Largest 6 | 2 2 2 2 . 3 3 3 . 3 3 1 3 . 3 5 5 3 5 5 4 6 . 3 1 Hottest 720 | 60 80 140 120 . 195 156 156 . 213 272 98 267 . 249 418 299 188 248 386 319 720 . 249 49 Shots Fired 2956 | 6 141 109 22 . 461 39 33 . 113 281 8 33 . 34 333 348 31 129 211 24 510 . 88 2 Gun 1230 | 6 95 60 10 . 353 . . . . 21 . 10 . 22 205 55 . 101 102 24 125 . 41 . Cannon 1560 | . 35 36 12 . 88 35 26 . 91 242 6 13 . 11 119 293 31 28 109 . 351 . 34 . Launcher 165 | . 11 13 . . 20 4 7 . 21 18 2 10 . 1 9 . . . . . 34 . 13 2 Special 1 | . . . . . . . . . 1 . . . . . . . . . . . . . . . Kinetic 1298 | 3 65 28 . . 350 20 17 . 42 45 . . . . 153 329 2 120 54 . 70 . . . Thermal 1245 | . 35 68 22 . 91 15 9 . 49 203 5 19 . 22 93 14 . . 145 24 373 . 58 . Explosive 113 | . 11 13 . . . . . . . 18 2 10 . 1 9 . . . . . 34 . 13 2 Electromagnetic 299 | 3 30 . . . 20 4 7 . 21 15 1 4 . 11 78 5 29 9 12 . 33 . 17 . Robot Hit Streak 46 | 3 6 10 12 . 20 7 7 . 8 14 . 20 . 2 17 46 24 8 21 9 21 . 11 4 Robot Miss Streak 7 | 1 7 2 2 . 6 3 2 . 4 7 . 4 . 6 4 6 3 5 4 1 6 . 4 . Penetration Max 3 | . . . . . 1 . . . . . . . . . 1 2 . 1 1 . 1 . 3 . Secondary Targets 14 | . 1 . . . 4 . . . . . . . . . 5 . . . . 1 . . 3 . Max Gunslinging Chain 1 | . 1 . . . 1 . . . . . . . . . 1 . . . . 1 . . 1 . Shots Hit Robots 1676 | 4 65 58 17 . 269 19 14 . 51 160 1 11 . 10 225 202 27 72 114 17 285 . 52 3 Core Hits 1132 | 1 31 30 3 . 132 7 12 . 57 141 5 32 . 10 154 111 16 36 77 10 187 . 72 8 Critical Kills 80 | . . 2 . . 2 . . . . 3 . 2 . . 1 48 1 2 4 . 12 . 3 . Critical Parts Destroyed 85 | . . . . . 2 . . . . . . . . 1 2 65 . 4 5 . 6 . . . Critical Strikes 235 | . 1 2 . . 6 1 . . . 5 . 2 . 1 11 142 2 9 19 2 27 . 5 . Burn 12 | . . . . . 2 . . . . . . . . . 1 1 . . 1 2 5 . . . Meltdown 12 | . . 1 . . 1 . . . . 2 . . . . . . . . . . 5 . 3 . Destroy 185 | . . 1 . . 3 . . . . 1 . 2 . 1 3 141 1 9 9 . 14 . . . Blast 15 | . . . . . . 1 . . . 2 . . . . 4 . . . 8 . . . . . Corrupt 5 | . 1 . . . . . . . . . . . . . 2 . 1 . 1 . . . . . Impale 6 | . . . . . . . . . . . . . . . 1 . . . . . 3 . 2 . Melee Attacks 137 | . . . . . . . . . . 13 1 . . . 25 1 . . . 8 47 20 18 4 Impact . | . . . . . . . . . . . . . . . . . . . . . . . . . Slashing . | . . . . . . . . . . . . . . . . . . . . . . . . . Piercing 137 | . . . . . . . . . . 13 1 . . . 25 1 . . . 8 47 20 18 4 Sneak Attacks 11 | . . . . . . . . . . 1 1 . . . 3 1 . . . 2 . . 3 . Combat Hostiles 2 | . . . . . . . . . . . 1 . . . . 1 . . . . . . . . Follow-up Attacks . | . . . . . . . . . . . . . . . . . . . . . . . . . Damage Inflicted 75189 | 53 1261 1703 319 . 8472 855 629 . 3318 9449 514 2428 . 599 9121 5178 1635 1714 5135 579 15941 . 5793 493 Guns 16118 | 53 553 654 158 . 4607 . . . . 535 . 120 . 198 2909 796 . 1191 2139 401 1117 . 687 . Cannons 30407 | . 315 496 158 . 1852 644 344 . 1820 4568 . 97 . 91 2527 4052 1089 523 2550 . 7767 . 1514 . Explosions 24746 | . 390 553 . . 2008 211 285 . 1498 3848 428 2211 . 310 2797 204 546 . 428 . 5832 . 2759 438 Melee 3543 | . . . . . . . . . . 323 86 . . . 781 93 . . . 167 1225 . 817 51 Ramming 375 | . 3 . 3 . 5 . . . . 175 . . . . 107 33 . . 18 11 . . 16 4 Kinetic 18400 | 38 374 221 . . 4855 437 186 . 1013 930 . . . . 2917 4527 14 1453 1175 . 260 . . . Thermal 25142 | . 338 929 316 . 1893 234 173 . 924 3767 . 217 . 211 1324 434 546 . 3253 401 8021 . 2161 . Explosive 19179 | . 367 553 . . 349 . . . . 3761 428 2211 . 310 2647 . . . . . 5572 . 2636 345 Electromagnetic 8550 | 15 179 . . . 1370 184 270 . 1381 493 . . . 78 1345 91 1075 261 689 . 863 . 163 93 Impact . | . . . . . . . . . . . . . . . . . . . . . . . . . Slashing . | . . . . . . . . . . . . . . . . . . . . . . . . . Piercing 3543 | . . . . . . . . . . 323 86 . . . 781 93 . . . 167 1225 . 817 51 Highest Corruption 71 | . 1 1 1 . 12 12 12 8 47 3 3 3 3 3 13 14 32 32 20 . 71 71 12 13 Average Corruption 12 | . 1 1 1 . 7 12 8 8 32 2 3 3 3 3 6 13 22 19 9 . 39 71 9 3 Corruption Purged 29 | . . . . . . . 4 . . . . . . . . . . 25 . . . . . . Corruption Blocked . | . . . . . . . . . . . . . . . . . . . . . . . . . Effects 740 | . 2 27 14 . 100 43 46 7 61 11 11 5 4 5 17 75 24 38 38 . 163 28 19 2 Message Errors 161 | . 1 4 3 . 25 12 14 2 7 4 3 2 . 2 2 12 6 7 7 . 30 10 6 2 Matter Fused 155 | . . 8 1 . 19 8 12 1 17 . 5 3 2 1 5 17 6 2 9 . 26 8 5 . Heat Flow Errors 77 | . . 2 1 . 12 3 4 . 7 2 2 . 1 2 . 12 3 7 2 . 13 2 2 . Energy Discharges 74 | . . 5 4 . 10 4 2 1 7 1 . . . . 2 8 2 3 2 . 17 4 2 . Parts Rejected 15 | . . . . . 3 . . . 1 1 . . . . 2 2 1 1 . . 3 . 1 . Parts Fused 12 | . . . 1 . 3 1 . . . 1 . . . . 2 1 . . . . 3 . . . Data Loss (minor) 74 | . . 4 3 . 15 6 4 3 7 1 . . 1 . 1 6 4 4 4 . 7 2 2 . Data Loss (major) 38 | . . 2 1 . 4 4 3 . 4 1 . . . . . 5 . 3 3 . 7 . 1 . Misfires 30 | . . 2 . . 4 4 5 . 3 . 1 . . . 1 3 . 2 2 . 3 . . . Alerts 13 | . . . . . 1 1 2 . 3 . . . . . 1 2 . . . . 1 2 . . Misdirections 11 | . . . . . . . . . 1 . . . . . 1 . . . . . 9 . . . Weapon Failures 80 | . 1 . . . 4 . . . 4 . . . . . . 7 2 9 9 . 44 . . . Overload Shots . | . . . . . . . . . . . . . . . . . . . . . . . . . Overflow Damage 1645 | . 19 49 . . 161 35 . . 38 331 10 29 . 10 120 . 23 . 8 27 514 . 247 24 Projectiles 532 | . 16 19 . . 42 35 . . 38 75 . . . . 42 . 23 . 5 . 198 . 39 . Explosions 888 | . 3 30 . . 119 . . . . 210 10 29 . 10 56 . . . 3 . 304 . 90 24 Melee 225 | . . . . . . . . . . 46 . . . . 22 . . . . 27 12 . 118 . Knockbacks 49 | . . . . . 7 1 2 . 4 6 . . . . 7 15 . . 7 . . . . . Impact 3 | . . . . . . . . . . . . . . . 1 1 . . 1 . . . . . Kinetic 42 | . . . . . 6 1 2 . 4 6 . . . . 6 12 . . 5 . . . . . Secondary 4 | . . . . . 1 . . . . . . . . . . 2 . . 1 . . . . . Self-Inflicted Damage 2012 | . 23 69 . . 356 . 8 . 262 35 102 113 . 41 173 . . . 97 . 461 . 248 24 Shots 56 | . 1 3 . . 10 . 1 . 14 1 2 3 . 1 4 . . . 1 . 8 . 6 1 Rammed 25 | . 1 . 1 . 3 . . . . . . . . . 5 4 . . 2 1 . . 7 1 Targets Rammed 44 | . 1 . 2 . 3 . . . . 15 . . . . 7 5 . . 2 1 . . 7 1 Kicked 16 | . . . . . . . . . . 15 . . . . 1 . . . . . . . . . Crushed 3 | . . . 1 . . . . . . . . . . . 1 1 . . . . . . . . Highest Temperature 685 | . 180 240 333 . 420 262 360 . 352 497 257 333 107 96 372 119 215 205 325 186 685 198 123 . Average Temperature 106 | . 47 39 124 . 103 95 134 . 113 115 131 101 73 35 94 65 91 64 101 104 151 105 60 . Received Heat Transfer 7943 | . 18 408 36 . 1783 12 6 . 235 745 . 219 . . 1439 302 . 45 725 9 1421 . 540 . Effects 24 | . . . 1 . 10 . . . . 1 . . . . . . . . 2 . 10 . . . Shutdowns 11 | . . . . . 5 . . . . 1 . . . . . . . . . . 5 . . . Energy Bleed 5 | . . . 1 . 3 . . . . . . . . . . . . . . . 1 . . . Interference 6 | . . . . . 2 . . . . . . . . . . . . . 2 . 2 . . . Damage (core) 2 | . . . . . . . . . . . . . . . . . . . . . 2 . . . Siege Activations 26 | . . . . . . . . . . . . . . . 4 8 2 3 1 . 6 . 2 . Total Turns 627 | . . . . . . . . . . . . . . . 173 211 61 35 1 . 119 . 27 . Longest Duration 61 | . . . . . . . . . . . . . . . 61 61 31 19 1 . 30 . 14 . Martial Activations . | . . . . . . . . . . . . . . . . . . . . . . . . . Shielding Activations 3 | . . . . . . . . . . . . . . . . . . . . . 3 . . . Total Turns 66 | . . . . . . . . . . . . . . . . . . . . . 66 . . . Longest Duration 39 | . . . . . . . . . . . . . . . . . . . . . 39 . . . Robots Disrupted 4 | . . . . . . . . . 1 1 . . . . 1 . . . . . . . 1 . Combat Hostiles 2 | . . . . . . . . . 1 . . . . . 1 . . . . . . . . . Robots Corrupted 25 | . 1 . . . 4 . . . 6 . . . . . . . 6 1 1 . 6 . . . Combat Hostiles 23 | . . . . . 4 . . . 6 . . . . . . . 5 1 1 . 6 . . . Parts Fried 58 | . 2 . . . 4 . . . 16 6 . . . . 7 1 6 1 4 . 11 . . . Impact Corruptions 2 | . . . . . . . . . . . . . . . 1 . . . 1 . . . . . Robots Melted 16 | . . 1 . . 2 . . . . 2 . . . . 1 . . . . . 7 . 3 . Combat Hostiles 15 | . . 1 . . 1 . . . . 2 . . . . 1 . . . . . 7 . 3 . Parts Melted 92 | . 1 2 . . 9 . 1 . 1 21 . . . 2 7 1 . . 6 3 29 . 9 . Heat Transferred 31924 | . 666 1376 533 . 3096 350 300 . 1200 5709 . 298 . 259 2471 648 350 . 3750 995 7910 . 2013 . Parts Sabotaged 4 | . . . . . . . . . 4 . . . . . . . . . . . . . . . Parts Stolen . | . . . . . . . . . . . . . . . . . . . . . . . . . Parts Stripped . | . . . . . . . . . . . . . . . . . . . . . . . . . Power Chain Reactions 14 | . 1 . . . 1 1 1 . 2 . . . . . 1 1 2 . 1 . 2 . 1 . Alert | -11 -10 -10 -9 -9 -6 -6 -6 -6 -5 -5 -5 -5 -5 -4 -4 -4 -4 -4 -4 -3 -3 -3 -2 -2 ------- Run | Yrd Mat Sub Rec Scr Fac Low Low Dat Pro Fac Upp Upp Zhi Pro Fac Ext Cet Arc Hub Res Arm Lab Res Qua Maximum Alert Level 5 | . 1 . . . 3 . . . . 4 . . . . 4 4 3 1 3 2 5 . 2 . Low Security (%) 41 | 100 92 . 100 . 62 . . . . 15 . . . . . . . 20 65 . 26 . 73 100 Level 1 17 | . 7 . . . 11 . . . . 51 . . . . 4 . . 79 5 59 13 . 1 . Level 2 16 | . . . . . 19 . . . . 6 . . . . 26 25 66 . 23 40 10 . 24 . Level 3 16 | . . . . . 6 . . . . 5 . . . . 59 72 33 . 5 . 9 . . . Level 4 6 | . . . . . . . . . . 20 . . . . 10 1 . . . . 28 . . . Level 5 . | . . . . . . . . . . . . . . . . . . . . . 5 . . . High Security . | . . . . . . . . . . . . . . . . . . . . . 7 . . . Max Security . | . . . . . . . . . . . . . . . . . . . . . . . . . Peak Influence 2202 | 5 240 . 97 . 711 . . . . 1204 . . . . 1164 1191 743 382 1087 559 2202 . 662 118 Initial 664 | . . . 97 . . . . . . 156 . . . . 631 565 664 261 46 559 142 . . 75 Average 427 | . 66 . 13 . 259 . . . . 476 . . . . 797 802 685 271 219 396 855 . 184 82 Influence Increases 17162 | 5 627 295 152 . 1833 155 160 . 777 1814 110 395 . 205 2505 1470 232 221 1421 202 3138 . 1332 113 Destroy 0b10 Robot/C 9260 | . 280 180 40 . 980 120 140 . 640 940 100 360 . 180 1080 920 160 80 600 80 1740 . 640 . Destroy 0b10 Robot/NC 750 | 5 50 . 5 . 75 5 . . 20 150 . 5 . 5 85 90 10 45 90 10 55 . 40 5 Destroy Leader 1734 | . 68 10 . . 268 30 20 . 60 214 10 30 . 20 246 160 . . 134 12 322 . 130 . Allied During Kill 286 | . . . . . . . . . 27 65 . . . . . 161 . . . . . . 33 . Successful Hack 228 | . 23 . 16 . 66 . . . . 34 . . . . 7 . . . 14 . 20 . 48 . Select Force Hacks 170 | . 30 . 90 . . . . . . . . . . . . . . . 50 . . . . . Disable Machine 1185 | . 75 . . . 240 . . . . 105 . . . . 195 45 . 90 150 . 225 . . 60 Destroy Structure 2124 | . 86 . 1 . 99 . . . . 246 . . . . 232 34 62 6 278 10 716 . 306 48 Advance Influence 600 | . . . . . . . . . . . . . . . 600 . . . . . . . . . Partial Spotted 30 | . . . . . . . . . . . . . . . . . . . . . 30 . . . Lose Combat Pursuer 795 | . 15 105 . . 105 . . . 30 60 . . . . 60 60 . . 105 90 30 . 135 . Influence Decreases 17054 | 5 411 308 355 . 1133 739 276 . 528 889 682 448 549 155 1400 1437 766 743 486 998 1207 2202 1197 140 Entered New Map 6197 | . . 104 106 . . 259 23 . . 93 436 116 549 . 19 590 524 393 86 508 129 2202 . 60 Time Decay 7539 | 5 411 184 239 . 647 470 253 . 478 666 246 302 . 155 601 577 222 350 290 440 628 . 325 50 Search Patrol Dispatched 150 | . . . . . . . . . . . . . . . 150 . . . . . . . . . Lost Part 1640 | . . 20 10 . 280 10 . . 50 90 . 30 . . 330 40 20 . 110 50 450 . 120 30 Lost Ally 258 | . . . . . . . . . . 40 . . . . . 80 . . . . . . 138 . Purge Threat 1270 | . . . . . 206 . . . . . . . . . 300 150 . . . . . . 614 . Squads Dispatched 107 | . 4 . . . 18 . . . 1 16 . . . . 16 11 . . 10 6 15 . 8 2 Investigation 24 | . 3 . . . 5 . . . . 8 . . . . 2 1 . . 1 1 1 . 1 1 Extermination 25 | . . . . . 6 . . . . 5 . . . . 5 . . . 2 . 4 . 3 . Reinforcement 35 | . 1 . . . 4 . . . . 3 . . . . 7 5 . . 4 5 3 . 2 1 Assault 17 | . . . . . 2 . . . 1 . . . . . 1 5 . . . . 7 . 1 . Garrison 6 | . . . . . 1 . . . . . . . . . 1 . . . 3 . . . 1 . Intercept . | . . . . . . . . . . . . . . . . . . . . . . . . . Searches Triggered 1 | . . . . . . . . . . . . . . . 1 . . . . . . . . . Data Miner Redirects 6 | . . . . . . . . . . . . . . . 2 2 . . 1 . 1 . . . Construction Impeded 11 | . . . . . 3 . . . . 1 . . . . 2 3 . . . 1 . . 1 . Haulers Reinforced 5 | . . . . . 1 . . . . . . . . . 1 . . . 1 2 . . . . Active Scanning Responses . | . . . . . . . . . . . . . . . . . . . . . . . . . Cargo Convoy Interrupts 2 | . . . . . . . . . . 1 . . . . 1 . . . . . . . . . Stealth | -11 -10 -10 -9 -9 -6 -6 -6 -6 -5 -5 -5 -5 -5 -4 -4 -4 -4 -4 -4 -3 -3 -3 -2 -2 --------- Run | Yrd Mat Sub Rec Scr Fac Low Low Dat Pro Fac Upp Upp Zhi Pro Fac Ext Cet Arc Hub Res Arm Lab Res Qua Distress Signals 51 | . 3 . . . 2 . . . . 4 . . . . 3 3 1 . 10 5 9 . 10 1 Communications Jammed 90 | . . . . . . . . . . 48 . . . . 1 . . . . . 41 . . . Distress Signals 86 | . . . . . . . . . . 45 . . . . . . . . . . 41 . . . Times Spotted 711 | . 21 20 2 . 80 6 8 . 40 63 5 18 . 13 90 54 9 23 53 18 113 . 66 9 Peak Tracking Total 15 | . 3 5 1 . 5 3 3 . 9 8 5 5 . 4 15 10 5 1 12 4 7 . 11 6 Tactical Retreats 32 | . 1 1 . . 5 . . . 1 3 . . . . 4 3 . . 4 2 2 . 6 . Traps | -11 -10 -10 -9 -9 -6 -6 -6 -6 -5 -5 -5 -5 -5 -4 -4 -4 -4 -4 -4 -3 -3 -3 -2 -2 ------- Run | Yrd Mat Sub Rec Scr Fac Low Low Dat Pro Fac Upp Upp Zhi Pro Fac Ext Cet Arc Hub Res Arm Lab Res Qua Traps Triggered 17 | . 2 1 . . 7 1 . . . . . . . . 1 2 . . 1 . 1 . . 1 Indirectly 1 | . . . . . . . . . . . . . . . . . . . 1 . . . . . Trap Hack Attempts . | . . . . . . . . . . . . . . . . . . . . . . . . . Triggered . | . . . . . . . . . . . . . . . . . . . . . . . . . Disarmed . | . . . . . . . . . . . . . . . . . . . . . . . . . Reprogrammed . | . . . . . . . . . . . . . . . . . . . . . . . . . Reused . | . . . . . . . . . . . . . . . . . . . . . . . . . Traps Extracted . | . . . . . . . . . . . . . . . . . . . . . . . . . Installed . | . . . . . . . . . . . . . . . . . . . . . . . . . Triggered . | . . . . . . . . . . . . . . . . . . . . . . . . . Machines | -11 -10 -10 -9 -9 -6 -6 -6 -6 -5 -5 -5 -5 -5 -4 -4 -4 -4 -4 -4 -3 -3 -3 -2 -2 ---------- Run | Yrd Mat Sub Rec Scr Fac Low Low Dat Pro Fac Upp Upp Zhi Pro Fac Ext Cet Arc Hub Res Arm Lab Res Qua Machines Disabled 86 | . 5 6 . . 16 . . . . 7 . . . . 13 3 . 6 10 . 15 1 . 4 Max in Single Turn 6 | . 2 2 . . 2 . . . . 1 . . . . 2 1 . 1 6 . 2 1 . 1 Garrison Access 1 | . . . . . 1 . . . . . . . . . . . . . . . . . . . Network Hub 2 | . . . . . . . . . . . . . . . . . . . 2 . . . . . Energy Cycler 1 | . . . . . . . . . . . . . . . . 1 . . . . . . . . Machines Repaired . | . . . . . . . . . . . . . . . . . . . . . . . . . Machines Dismantled . | . . . . . . . . . . . . . . . . . . . . . . . . . Machines Sabotaged 1 | . . . . . . . . . . . . . . . . . . . 1 . . . . . Overloaded Fab Kills . | . . . . . . . . . . . . . . . . . . . . . . . . . Hacking | -11 -10 -10 -9 -9 -6 -6 -6 -6 -5 -5 -5 -5 -5 -4 -4 -4 -4 -4 -4 -3 -3 -3 -2 -2 --------- Run | Yrd Mat Sub Rec Scr Fac Low Low Dat Pro Fac Upp Upp Zhi Pro Fac Ext Cet Arc Hub Res Arm Lab Res Qua Machines Accessed 73 | . 6 2 9 3 14 . . 4 . 13 . 1 4 . 5 2 . . 3 1 3 . 3 . Terminals 33 | . 4 . 6 . 8 . . . . 6 . . . . 2 1 . . 3 . 1 . 2 . Fabricators 4 | . . . . . 1 . . . . 2 . . . . 1 . . . . . . . . . Repair Stations 4 | . 1 . . . . . . . . 1 . . . . . . . . . . 2 . . . Recycling Units 16 | . 1 . 3 . 4 . . . . 4 . . . . 2 1 . . . . . . 1 . Scanalyzers . | . . . . . . . . . . . . . . . . . . . . . . . . . Garrison Access 2 | . . . . . 1 . . . . . . . . . . . . . . 1 . . . . Total Hacks 213 | . 20 6 21 6 32 . . 25 . 39 . 1 17 . 12 4 . . 6 1 10 . 13 . Successful 131 | . 13 6 14 6 12 . . 25 . 13 . 1 17 . 8 2 . . 3 . 2 . 9 . Failed 80 | . 6 . 6 . 20 . . . . 26 . . . . 4 2 . . 3 1 8 . 4 . Catastrophic 12 | . 1 . . . 3 . . . . 4 . . . . . 2 . . . . 1 . 1 . Database Lockouts 2 | . 1 . 1 . . . . . . . . . . . . . . . . . . . . . Manual 95 | . 16 . 21 . 17 . . . . 20 . . . . 5 4 . . 2 . . . 10 . Terminals 101 | . 15 . 16 . 18 . . . . 23 . . . . 8 2 . . 6 . 1 . 12 . Fabricators 7 | . . . . . 2 . . . . 4 . . . . 1 . . . . . . . . . Repair Stations 15 | . 4 . . . . . . . . 2 . . . . . . . . . . 9 . . . Recycling Units 33 | . 1 . 5 . 11 . . . . 10 . . . . 3 2 . . . . . . 1 . Scanalyzers . | . . . . . . . . . . . . . . . . . . . . . . . . . Garrison Access 2 | . . . . . 1 . . . . . . . . . . . . . . 1 . . . . Terminal Hacks 89 | . 6 6 3 6 6 . . 25 . 4 . 1 17 . 4 1 . . 2 . . . 8 . Record 27 | . . 5 . 5 . . . 11 . . . 1 5 . . . . . . . . . . . Part Schematic 16 | . 2 . 2 . . . . 8 . . . . 4 . . . . . . . . . . . Robot Schematic 4 | . 1 . . . . . . 3 . . . . . . . . . . . . . . . . Robot Analysis 6 | . 2 . . . . . . . . . . . 4 . . . . . . . . . . . Prototype ID Bank 7 | . . . . . . . . 3 . . . . 4 . . . . . . . . . . . Level Access Points 1 | . . . . . . . . . . . . . . . . . . . . . . . 1 . Branch Access Points 2 | . . . . . . . . . . 1 . . . . . . . . . . . . 1 . Terminal Index 2 | . 1 . 1 . . . . . . . . . . . . . . . . . . . . . Fabricator Index 1 | . . . . . 1 . . . . . . . . . . . . . . . . . . . Recycling Unit Index 3 | . . . . . 1 . . . . 1 . . . . 1 . . . . . . . . . Alert Level 2 | . . . . . . . . . . . . . . . 1 . . . 1 . . . . . Unreport Threat 10 | . . . . . 2 . . . . . . . . . 2 1 . . . . . . 5 . Locate Traps 2 | . . . . . . . . . . . . . . . . . . . 1 . . . 1 . Hauler Manifests 2 | . . . . . 1 . . . . 1 . . . . . . . . . . . . . . Registered Components 1 | . . . . . . . . . . 1 . . . . . . . . . . . . . . Zone Layout 1 | . . . . . 1 . . . . . . . . . . . . . . . . . . . Proto ID Catalog 2 | . . 1 . 1 . . . . . . . . . . . . . . . . . . . . Fabricator Hacks 1 | . . . . . . . . . . . . . . . 1 . . . . . . . . . Load Schematic 1 | . . . . . . . . . . . . . . . 1 . . . . . . . . . Repair Station Hacks 8 | . 4 . . . . . . . . 2 . . . . . . . . . . 2 . . . Scan Component 5 | . 2 . . . . . . . . 1 . . . . . . . . . . 2 . . . Repair 3 | . 2 . . . . . . . . 1 . . . . . . . . . . . . . . Recycling Unit Hacks 2 | . . . . . . . . . . 2 . . . . . . . . . . . . . . Retrieve Components 2 | . . . . . . . . . . 2 . . . . . . . . . . . . . . Scanalyzer . | . . . . . . . . . . . . . . . . . . . . . . . . . Garrison Access Hacks 1 | . . . . . 1 . . . . . . . . . . . . . . . . . . . Seal Access 1 | . . . . . 1 . . . . . . . . . . . . . . . . . . . Unauthorized Hacks 30 | . 3 . 11 . 5 . . . . 5 . . . . 3 1 . . 1 . . . 1 . Terminals 16 | . 2 . 8 . 2 . . . . 2 . . . . 1 . . . 1 . . . . . Botnet 10 | . 2 . 3 . 2 . . . . 2 . . . . 1 . . . . . . . . . Skim 5 | . . . 5 . . . . . . . . . . . . . . . . . . . . . Sabotage 1 | . . . . . . . . . . . . . . . . . . . 1 . . . . . Fabricators 2 | . . . . . 1 . . . . 1 . . . . . . . . . . . . . . Liberate 1 | . . . . . 1 . . . . . . . . . . . . . . . . . . . Haulers 1 | . . . . . . . . . . 1 . . . . . . . . . . . . . . Repair Stations . | . . . . . . . . . . . . . . . . . . . . . . . . . Recycling Units 12 | . 1 . 3 . 2 . . . . 2 . . . . 2 1 . . . . . . 1 . Tunnel 4 | . 1 . 3 . . . . . . . . . . . . . . . . . . . . . Fedlink 8 | . . . . . 2 . . . . 2 . . . . 2 1 . . . . . . 1 . Scanalyzers . | . . . . . . . . . . . . . . . . . . . . . . . . . Garrison Access . | . . . . . . . . . . . . . . . . . . . . . . . . . Data Cores Recovered . | . . . . . . . . . . . . . . . . . . . . . . . . . Used . | . . . . . . . . . . . . . . . . . . . . . . . . . Hacking Detections 41 | . 5 . 5 . 13 . . . . 9 . . . . 1 1 . . 1 1 3 . 2 . Full Trace Events 8 | . 1 . . . 2 . . . . 5 . . . . . . . . . . . . . . Feedback Events . | . . . . . . . . . . . . . . . . . . . . . . . . . Feedback Blocked . | . . . . . . . . . . . . . . . . . . . . . . . . . Robot Schematics Acquired 4 | . 1 . . . . . . 3 . . . . . . . . . . . . . . . . Robots Built . | . . . . . . . . . . . . . . . . . . . . . . . . . Authchips . | . . . . . . . . . . . . . . . . . . . . . . . . . Time . | . . . . . . . . . . . . . . . . . . . . . . . . . Total Robot Build Rating . | . . . . . . . . . . . . . . . . . . . . . . . . . Part Schematics Acquired 16 | . 2 . 2 . . . . 8 . . . . 4 . . . . . . . . . . . Parts Built . | . . . . . . . . . . . . . . . . . . . . . . . . . Authchips . | . . . . . . . . . . . . . . . . . . . . . . . . . Time . | . . . . . . . . . . . . . . . . . . . . . . . . . Total Part Build Rating . | . . . . . . . . . . . . . . . . . . . . . . . . . Parts Repaired 3 | . 2 . . . . . . . . 1 . . . . . . . . . . . . . . Time 80 | . 52 . . . . . . . . 28 . . . . . . . . . . . . . . Parts Recycled . | . . . . . . . . . . . . . . . . . . . . . . . . . Recycled Matter . | . . . . . . . . . . . . . . . . . . . . . . . . . Retrieved Matter . | . . . . . . . . . . . . . . . . . . . . . . . . . Retrieved Components 13 | . . . . . . . . . . 13 . . . . . . . . . . . . . . Parts Scanalyzed . | . . . . . . . . . . . . . . . . . . . . . . . . . Part Schematics Acquired . | . . . . . . . . . . . . . . . . . . . . . . . . . Parts Damaged . | . . . . . . . . . . . . . . . . . . . . . . . . . Bothacking | -11 -10 -10 -9 -9 -6 -6 -6 -6 -5 -5 -5 -5 -5 -4 -4 -4 -4 -4 -4 -3 -3 -3 -2 -2 ------------ Run | Yrd Mat Sub Rec Scr Fac Low Low Dat Pro Fac Upp Upp Zhi Pro Fac Ext Cet Arc Hub Res Arm Lab Res Qua Used RIF Installer . | . . . . . . . . . . . . . . . . . . . . . . . . . Robots Hacked . | . . . . . . . . . . . . . . . . . . . . . . . . . Non-combat . | . . . . . . . . . . . . . . . . . . . . . . . . . Combat . | . . . . . . . . . . . . . . . . . . . . . . . . . Robot Hacks Applied . | . . . . . . . . . . . . . . . . . . . . . . . . . Relay Couplers Released 3 | . . . . . . . . . . . . . . . . . . . 3 . . . . . Programmers 3 | . . . . . . . . . . . . . . . . . . . 3 . . . . . Fabnet Peak Effective % . | . . . . . . . . . . . . . . . . . . . . . . . . . Robots Rewired 4 | . . . . . . . . . 1 . . . . . . 3 . . . . . . . . Allies Hacked . | . . . . . . . . . . . . . . . . . . . . . . . . . Hacks Repelled . | . . . . . . . . . . . . . . . . . . . . . . . . . Allies | -11 -10 -10 -9 -9 -6 -6 -6 -6 -5 -5 -5 -5 -5 -4 -4 -4 -4 -4 -4 -3 -3 -3 -2 -2 -------- Run | Yrd Mat Sub Rec Scr Fac Low Low Dat Pro Fac Upp Upp Zhi Pro Fac Ext Cet Arc Hub Res Arm Lab Res Qua Total Allies 21 | . . . . . . . . . 2 . . . . . . 5 . . . . . . 14 . Largest Group 14 | . . . . . . . . . 2 2 . . . . . 4 . . . . . . 14 . Highest-Rated Group 248 | . . . . . . . . . 126 126 . . . . . 248 . . . . . . 195 . Highest-Rated Ally 159 | . . . . . . . . . 96 96 . . . . . 159 . . . . . . 15 . Total Orders . | . . . . . . . . . . . . . . . . . . . . . . . . . Ally Attacks 128 | . . . . . . . . . 10 11 . . . . . 58 . . . . . . 49 . Total Damage 2991 | . . . . . . . . . 431 579 . . . . . 1106 . . . . . . 875 . Kills 18 | . . . . . . . . . 4 6 . . . . . 5 . . . . . . 3 . Allies Corrupted 3 | . . . . . . . . . . . . . . . . 1 . . . . . . 2 . Allies Melted . | . . . . . . . . . . . . . . . . . . . . . . . . . Intel | -11 -10 -10 -9 -9 -6 -6 -6 -6 -5 -5 -5 -5 -5 -4 -4 -4 -4 -4 -4 -3 -3 -3 -2 -2 ------- Run | Yrd Mat Sub Rec Scr Fac Low Low Dat Pro Fac Upp Upp Zhi Pro Fac Ext Cet Arc Hub Res Arm Lab Res Qua Active Infowar (turns) 18583 | 8 1140 1980 . . 1525 27 . . 174 2550 521 662 270 492 1920 1775 469 782 893 1082 2313 . . . Optics 6937 | . . . . . . . . . . . . . . . 92 1775 469 782 893 1082 1844 . . . Terrain 756 | . . . . . . . . . . . . . . . . . . . . 385 371 . . . Traps 1 | . . . . . 1 . . . . . . . . . . . . . . . . . . . Seismic 3128 | 8 1140 1980 . . . . . . . . . . . . . . . . . . . . . . T.N.C. 6934 | . . . . . 1525 27 . . . 1475 521 662 270 492 1920 42 . . . . . . . . Machine Analysis 4347 | . . . . . . . . . . . . . . . 747 1775 469 782 574 . . . . . Cloaking 3 | . . . . . . . . . . . . . . . . . . . . . 3 . . . Jamming 3589 | . . . . . . . . . 174 1855 . . . . 378 . . . . . 1182 . . . Robot Analysis Total 6 | . 2 . . . . . . . . . . . 4 . . . . . . . . . . . Derelict Logs Recovered 13 | . . 1 . 5 . 1 2 . 1 . 1 . . 2 . . . . . . . . . . Drone Launches . | . . . . . . . . . . . . . . . . . . . . . . . . . Drone Recoveries . | . . . . . . . . . . . . . . . . . . . . . . . . . Exploration | -11 -10 -10 -9 -9 -6 -6 -6 -6 -5 -5 -5 -5 -5 -4 -4 -4 -4 -4 -4 -3 -3 -3 -2 -2 ------------- Run | Yrd Mat Sub Rec Scr Fac Low Low Dat Pro Fac Upp Upp Zhi Pro Fac Ext Cet Arc Hub Res Arm Lab Res Qua Turns Passed 34784 | 85 1140 3907 1944 3853 4258 1195 1390 241 1227 2551 521 662 270 492 1920 1775 469 782 912 1082 2337 550 1107 114 Spaces Moved 13804 | 43 523 1618 645 1438 1596 506 476 97 448 1117 261 311 133 238 702 547 141 221 279 592 644 398 676 154 Core 1037 | 2 . . . 252 . . . . . . . . . . . . . . . . . 337 292 154 Treads 8926 | 41 523 1604 622 1134 1002 352 476 97 39 . . . . . 459 547 141 221 279 592 378 61 358 . Legs 3004 | . . . . . . . . . 409 1117 261 311 133 238 243 . . . . . 266 . 26 . Wheels 837 | . . 14 23 52 594 154 . . . . . . . . . . . . . . . . . . Hover . | . . . . . . . . . . . . . . . . . . . . . . . . . Flight . | . . . . . . . . . . . . . . . . . . . . . . . . . Fastest Speed 50 | 50 160 150 150 110 110 170 240 240 190 120 190 120 120 190 160 166 240 160 160 160 170 50 50 50 Average Speed 200 | 154 160 175 293 262 214 224 258 244 217 178 190 189 188 190 175 230 244 195 231 170 212 71 118 51 Slowest Speed 500 | 160 160 320 400 500 320 290 320 320 320 190 190 190 190 190 260 246 246 240 240 240 360 270 270 200 Overloaded Moves . | . . . . . . . . . . . . . . . . . . . . . . . . . Propulsion Burnouts . | . . . . . . . . . . . . . . . . . . . . . . . . . Robots Hopped . | . . . . . . . . . . . . . . . . . . . . . . . . . Potential Cave-ins . | . . . . . . . . . . . . . . . . . . . . . . . . . Cave-ins Triggered . | . . . . . . . . . . . . . . . . . . . . . . . . . Teleports 2 | . . . . . . . . . . . . . . . 1 . . . . . . . 1 . Exploration Rate (%) 55 | 4 68 67 98 84 29 67 75 69 49 34 55 57 60 44 23 70 60 95 51 19 60 93 27 25 Regions Visited 24 Branch Regions 18 Pre-discovered Areas 15 | . 1 3 4 1 1 . . 1 . . 1 . 3 . . . . . . . . . . . Known Exits Taken 8 | . . . 1 . 1 . . . 1 1 . . . . 1 . . . . 1 . 1 1 . Unknown Exits Taken 16 | 1 1 1 . 1 . 1 1 1 . . 1 1 1 1 . 1 1 1 1 . 1 . . . Scrap Searched 20 | . . . . 7 . 2 3 . 2 . 2 2 . 2 . . . . . . . . . . Spaces Dug 239 | . 11 6 . . 2 2 5 . 17 30 30 72 . . 29 . . . 4 5 9 15 2 . Terrain Destroyed 1855 | . 100 56 . . 131 19 17 . 49 170 44 150 . 31 129 15 35 7 199 5 522 15 145 16 Melee 36 | . . . . . . . . . . 2 . . . . 6 . . . . 5 7 15 1 . Projectile 397 | . . 1 . . 29 18 14 . 41 57 5 11 . 15 40 7 1 7 53 . 95 . 3 . AOE 1422 | . 100 55 . . 102 1 3 . 8 111 39 139 . 16 83 8 34 . 146 . 420 . 141 16 Terrain Rammed . | . . . . . . . . . . . . . . . . . . . . . . . . . Walls Destroyed . | . . . . . . . . . . . . . . . . . . . . . . . . . Machines Disabled . | . . . . . . . . . . . . . . . . . . . . . . . . . Actions | -11 -10 -10 -9 -9 -6 -6 -6 -6 -5 -5 -5 -5 -5 -4 -4 -4 -4 -4 -4 -3 -3 -3 -2 -2 --------- Run | Yrd Mat Sub Rec Scr Fac Low Low Dat Pro Fac Upp Upp Zhi Pro Fac Ext Cet Arc Hub Res Arm Lab Res Qua Total 18451 | 52 682 2577 671 1518 2038 540 612 102 599 1456 277 351 152 251 1115 849 240 452 401 637 1183 643 872 181 Wait 2122 | . 63 854 . 52 62 . 111 . 7 69 4 . . . 153 134 34 163 20 6 178 164 37 11 Move 13780 | 42 522 1617 644 1437 1595 505 475 96 447 1116 260 310 132 237 701 546 140 220 278 591 643 397 675 154 Hop . | . . . . . . . . . . . . . . . . . . . . . . . . . Pick Up 295 | . 10 21 4 20 46 4 2 . 19 22 1 3 2 . 21 18 9 3 10 4 35 32 8 1 Fast Attach 221 | 7 1 5 4 1 36 1 4 3 16 14 . 6 7 . 28 11 2 8 10 9 28 4 14 2 Attach 202 | . 1 5 . 2 28 3 . . 14 27 . 2 1 . 26 8 11 . 5 5 36 4 22 2 Detach 44 | . . 1 3 . . . . . 3 11 . 1 . . 5 4 2 . . . 7 . 6 1 Swap 94 | . 5 6 1 . 22 2 2 . 10 15 3 4 2 2 4 2 1 . 1 . 11 . 1 . Drop 250 | . 2 5 1 6 22 7 3 3 23 28 1 5 8 . 14 18 12 3 12 7 25 22 20 3 Fire 1242 | 3 77 63 12 . 222 18 15 . 57 126 7 20 . 12 131 87 29 55 63 6 173 . 64 2 Melee 137 | . . . . . . . . . . 13 1 . . . 25 1 . . . 8 47 20 18 4 Ram 4 | . . . . . . . . . . . . . . . . . . . . . . . 3 1 Kick 16 | . . . . . . . . . . 15 . . . . 1 . . . . . . . . . Crush 24 | . 1 . 2 . 3 . . . . . . . . . 6 5 . . 2 1 . . 4 . Escape Stasis 4 | . . . . . 2 . . . . . . . . . . 2 . . . . . . . . Rewire 16 | . . . . . . . . . 3 . . . . . . 13 . . . . . . . . Trap . | . . . . . . . . . . . . . . . . . . . . . . . . . Miscellaneous . | . . . . . . . . . . . . . . . . . . . . . . . . . Route ------- -11/Scrapyard -10/Materials (discovered 4 exits: [*Mat x2] / [*Min] / *Sub) -10/Subcaves (discovered 3 exits: [*Mat x2] / *Rec) -9/Recycling (discovered 2 exits: *Fac / *Scr) -9/Scraptown (discovered 2 exits: *Fac x2) -6/Factory (discovered 2 exits: *Fac / *Low) -6/Lower Caves -6/Lower Caves (discovered 2 exits: *Fac / *Dat) -6/Data Miner -5/Proximity Caves -5/Factory (discovered 4 exits: *Fac x2 / *Upp x2) -5/Upper Caves -5/Upper Caves (discovered 2 exits: *Fac / *Zhi) -5/Zhirov -4/Proximity Caves -4/Factory (discovered 2 exits: *Ext x2) -4/Extension (discovered 3 exits: *Res x2 / [*Cet]) -4/Cetus (discovered 2 exits: *Res / [*Arc]) -4/Archives (discovered 3 exits: *Res / *Hub x2) -4/Hub_04(d) (discovered 3 exits: *Res x3) -3/Research (discovered 3 exits: *Res / *Arm / Tes) -3/Armory (discovered 2 exits: *Res / [*Lab]) -3/Lab -2/Research (discovered 2 exits: *Qua x2) -2/Quarantine History --------- Turn | Location | Event 40 | -11/Scrapyard | Discovered new exit (range 15) 86 | -11/Scrapyard | Entered Materials 308 | -10/Materials | Build established: Mutant 347 | -10/Materials | Discovered new exit (range 14) 428 | -10/Materials | Discovered new exit (range 16) 627 | -10/Materials | Central database locked down 744 | -10/Materials | Repaired Lgt. Treads 771 | -10/Materials | Repaired Lgt. Treads 1001 | -10/Materials | Discovered new exit (range 14) 1210 | -10/Materials | Discovered new exit (range 8) 1226 | -10/Materials | Entered Subcaves 1271 | -10/Subcaves | Learned location of Zion (-7) 1271 | -10/Subcaves | Met a Zionite searching for "candidates" 1581 | -10/Subcaves | Discovered new exit (range 7) 1598 | -10/Subcaves | A swath of the cavern ceiling suddenly collapsed 2638 | -10/Subcaves | Shifting Twisted Machinery released Sub. Beam Cannon 2712 | -10/Subcaves | Shifting Twisted Machinery released Scrap Shield 3034 | -10/Subcaves | Visited Clippyterm 3039 | -10/Subcaves | Learned location of Extension (-4) 3039 | -10/Subcaves | Learned Factory emergency access door positions 3056 | -10/Subcaves | Discovered new exit (range 9) 3059 | -10/Subcaves | Build established: Scavenger-Mutant 3184 | -10/Subcaves | Ambushed by angry Subdweller bent on revenge 4422 | -10/Subcaves | Build established: Subdweller-Mutant 4856 | -10/Subcaves | Build established: Scavenger-Mutant 4921 | -10/Subcaves | Visited 4L-MR0's lab 4951 | -10/Subcaves | Found Rainbow Chip 5107 | -10/Subcaves | Core integrity fell below 50% 5113 | -10/Subcaves | Discovered new exit (range 12) 5133 | -10/Subcaves | Entered Recycling 5480 | -9/Recycling | Build established: Mutant 5656 | -9/Recycling | Identified exit to Factory 5675 | -9/Recycling | Learned Storage trap positions 5684 | -9/Recycling | Identified exit to Scraptown 5685 | -9/Recycling | Learned location of 2 exits from Materials 5693 | -9/Recycling | Learned Storage security intel 5710 | -9/Recycling | Learned location of 3 exits from Materials 7005 | -9/Recycling | Scanned before Scraplab entrance 7044 | -9/Recycling | Entered Scraplab 7077 | -9/Recycling | Entered Scraptown 7077 | -9/Scraptown | System corruption cleaned by C-Scrubber 7418 | -9/Scraptown | Visited UFD Registry 7418 | -9/Scraptown | Registered with UFD as "Spikenuts" 7449 | -9/Scraptown | Visited The Evicted 7478 | -9/Scraptown | Visited Cyclists 7521 | -9/Scraptown | Visited TADAMA 7598 | -9/Scraptown | Scanned Subdweller tech in exchange for log data 7605 | -9/Scraptown | Learned Factory terminal intel 7610 | -9/Scraptown | Learned Research trap positions 7613 | -9/Scraptown | Learned 12 Research zone layouts 7644 | -9/Scraptown | Discovered new exit (range 11) 7743 | -9/Scraptown | Guru changed UFD alias to "Dualfunk" 8354 | -9/Scraptown | Visited IN-MT5's Study 8522 | -9/Scraptown | Visited Science Guys 8608 | -9/Scraptown | Visited Derelict Rescue Squad 8736 | -9/Scraptown | Visited A0-MCA Data Center 8764 | -9/Scraptown | Visited Curators Association 8832 | -9/Scraptown | Visited Scrapoid Pod Storage 8865 | -9/Scraptown | Visited DA-N13 Charitable Foundation 8889 | -9/Scraptown | Found DCF Scrap (29 items) 9074 | -9/Scraptown | Discovered new exit (range 5) 9250 | -9/Scraptown | Delivered Scrap Shield to a Scientist 9457 | -9/Scraptown | Given a B- rating by A0-MCA 9460 | -9/Scraptown | Found A0-MCA's Component Scanner 9863 | -9/Scraptown | Build established: Scavenger-Mutant 10362 | -9/Scraptown | Entered Cyclist Reading Room 10875 | -9/Scraptown | Met Optimus 10875 | -9/Scraptown | Accepted into 0bPrime 10930 | -9/Scraptown | Entered Factory 10930 | -6/Factory | Evolved 8 slots: Power x1, Propulsion x2, Utility x4, Weapon x1 10932 | -6/Factory | Loaded intel: 26 terminal locations 11190 | -6/Factory | Garrison activated, responded to threat 11228 | -6/Factory | Build established: Scavenger-Tank 11767 | -6/Factory | Spotted B-75 Beast 11839 | -6/Factory | Destroyed B-75 Beast 12061 | -6/Factory | Lost 6 parts (1p2n3u) 12362 | -6/Factory | Build established: Derelict-Tank 12521 | -6/Factory | Discovered new exit (range 16) 12764 | -6/Factory | Identified exit to Factory 12841 | -6/Factory | Build established: Tank 12893 | -6/Factory | Discovered new exit (range 3) 12898 | -6/Factory | Identified exit to Lower Caves 12930 | -6/Factory | Loaded intel: 8 recycling unit locations 13741 | -6/Factory | System corruption reached 10% 13796 | -6/Factory | Lost 6 parts (1p3n2u) 14213 | -6/Factory | Learned location of Protoforge (-2) 14309 | -6/Factory | Lost 7 parts (1p3n3u) 14565 | -6/Factory | Build established: Scavenger-Gunner 15130 | -6/Factory | First assault squad dispatched 15188 | -6/Factory | Entered Lower Caves 15190 | -6/Lower Caves | UFD Scientist delivered a prototype 15217 | -6/Lower Caves | Found Prototype Protection 15217 | -6/Lower Caves | Identified Enh. Scrap Shield 15232 | -6/Lower Caves | Entered a destroyed Warlord outpost 15242 | -6/Lower Caves | Build established: Scavenger-Tank 15548 | -6/Lower Caves | Learned Factory terminal intel 15569 | -6/Lower Caves | Attracted the attention of an 0b10 checkpoint 16295 | -6/Lower Caves | Discovered new exit (range 3) 16383 | -6/Lower Caves | Entered another Lower Caves area 16384 | -6/Lower Caves | Encountered a Warlord checkpoint 16522 | -6/Lower Caves | Attracted the attention of an 0b10 checkpoint 16534 | -6/Lower Caves | Discovered exit to Factory (range 16) 17084 | -6/Lower Caves | Build established: Tank 17693 | -6/Lower Caves | Learned Factory terminal intel 17725 | -6/Lower Caves | Discovered new exit (range 15) 17742 | -6/Lower Caves | Build established: Scavenger-Tank 17773 | -6/Lower Caves | Entered Data Miner 17775 | -6/Data Miner | Discovered new exit (range 6) 17821 | -6/Data Miner | Met Data Miner 17893 | -6/Data Miner | Learned location of Section 7 (-2) 17893 | -6/Data Miner | Acquired the access code to Warlord's prototype stash 17912 | -6/Data Miner | Received God Mode back door access code from Data Miner 18014 | -6/Data Miner | Entered Proximity Caves 18020 | -5/Proximity Caves | Unaware initiated a cargo recovery operation 18067 | -5/Proximity Caves | Attracted the attention of an 0b10 checkpoint 18127 | -5/Proximity Caves | Core integrity fell below 50% 18212 | -5/Proximity Caves | System corruption reached 30% 18371 | -5/Proximity Caves | Build established: Tank 18580 | -5/Proximity Caves | Found Prototype Device 18580 | -5/Proximity Caves | Identified Exp. Transmission Jammer 18694 | -5/Proximity Caves | Build established: Gunner 18915 | -5/Proximity Caves | Attracted the attention of an 0b10 outpost 18964 | -5/Proximity Caves | Escorted by Enhanced Grunt 18995 | -5/Proximity Caves | Destroyed 9 combat bots 19241 | -5/Proximity Caves | Entered Factory 19241 | -5/Factory | Accompanied by 2 allies 19241 | -5/Factory | Evolved 2 slots: Utility x2 19242 | -5/Factory | Loaded intel: 26 terminal locations 19268 | -5/Factory | Identified exit to Upper Caves 19909 | -5/Factory | Found Prototype Device 19909 | -5/Factory | Identified Exp. Thermal Shield 20025 | -5/Factory | Discovered new exit (range 10) 20219 | -5/Factory | Build established: Tank 20453 | -5/Factory | Repaired Adv. Plasma Cannon 20745 | -5/Factory | Build established: Gunner 20754 | -5/Factory | Discovered new exit (range 9) 20793 | -5/Factory | Cargo convoy interrupted 21150 | -5/Factory | Lost 5 parts (2p2u1w) 21159 | -5/Factory | Destroyed 10 combat bots 21246 | -5/Factory | Found PL-3XN's Ring of Power 21359 | -5/Factory | Loaded intel: 8 recycling unit locations 21792 | -5/Factory | Entered Upper Caves 21816 | -5/Upper Caves | Build established: Mutant 22124 | -5/Upper Caves | Build established: Tank 22215 | -5/Upper Caves | Learned location of Armory (-3) 22254 | -5/Upper Caves | Discovered new exit (range 5) 22313 | -5/Upper Caves | Entered another Upper Caves area 22321 | -5/Upper Caves | Discovered new exit (range 11) 22654 | -5/Upper Caves | Entered a destroyed Warlord outpost 22844 | -5/Upper Caves | Found Imp. Powered Armor 22926 | -5/Upper Caves | Discovered new exit (range 5) 22975 | -5/Upper Caves | Entered Zhirov 22975 | -5/Zhirov | Discovered new exit (range 3) 23011 | -5/Zhirov | Met Zhirov 23054 | -5/Zhirov | Found Alien Artifact 23054 | -5/Zhirov | Identified Integrated Dissipator 23054 | -5/Zhirov | Installed Integrated Dissipator, increased core heat dissipation (+20) 23125 | -5/Zhirov | Found Alien Artifact 23172 | -5/Zhirov | Learned location of Command (-1) 23183 | -5/Zhirov | Zhirov requested help retrieving the SGEMP Prototype 23245 | -5/Zhirov | Entered Proximity Caves 23248 | -4/Proximity Caves | Spotter reported a threat 23506 | -4/Proximity Caves | Spotter reported a threat 23559 | -4/Proximity Caves | Spotter reported a threat 23612 | -4/Proximity Caves | Learned Research emergency access door positions 23625 | -4/Proximity Caves | Spotter reported a threat 23640 | -4/Proximity Caves | Learned location of 1 exit from Research 23727 | -4/Proximity Caves | Discovered new exit (range 5) 23737 | -4/Proximity Caves | Entered Factory 23737 | -4/Factory | Evolved 2 slots: Weapon x2 23738 | -4/Factory | Identified exit to Extension 23739 | -4/Factory | Loaded intel: 28 terminal locations 23987 | -4/Factory | Search patrols dispatched 24108 | -4/Factory | Loaded intel: 8 recycling unit locations 24380 | -4/Factory | Cargo convoy interrupted 24385 | -4/Factory | Identified Transdimensional Reconstructor 24385 | -4/Factory | Warped through subspace 24401 | -4/Factory | Incoming assault squad redirected 24415 | -4/Factory | Lost 6 parts (1p1u4w) 24458 | -4/Factory | Spotted B-86 Titan 24487 | -4/Factory | First assault squad dispatched 24521 | -4/Factory | Destroyed 7 combat bots 24529 | -4/Factory | Core integrity fell below 50% 24557 | -4/Factory | Destroyed B-86 Titan 24565 | -4/Factory | Lost 6 parts (3p2u1w) 24716 | -4/Factory | Destroyed 7 combat bots 24756 | -4/Factory | Lost 8 parts (1p2u5w) 25005 | -4/Factory | Build established: Scavenger-Mutant 25065 | -4/Factory | Incoming investigation squad redirected 25341 | -4/Factory | Build established: Scavenger-Tank 25407 | -4/Factory | Garrison activated, responded to threat 25542 | -4/Factory | Lost 8 parts (1p3n4w) 25566 | -4/Factory | System corruption reached 10% 25657 | -4/Factory | Entered Extension 25706 | -4/Extension | Rescued a captive Derelict 25786 | -4/Extension | Loaded intel: 1 recycling unit location 25802 | -4/Extension | Incoming investigation squad redirected 25880 | -4/Extension | Energy Cycler disabled 25880 | -4/Extension | Rescued a captive Derelict 25885 | -4/Extension | Rescued a captive Derelict 25886 | -4/Extension | Rescued a captive Derelict 25893 | -4/Extension | Rescued A7 25907 | -4/Extension | First assault squad dispatched 26025 | -4/Extension | Core integrity fell below 20% 26682 | -4/Extension | Disrupted transfer network 26688 | -4/Extension | Build established: Hacker-Tank 26836 | -4/Extension | Spotted B-86 Titan 26863 | -4/Extension | Destroyed B-86 Titan 26886 | -4/Extension | Spotted B-86 Titan 26907 | -4/Extension | Destroyed A7 26928 | -4/Extension | Incoming assault squad redirected 26946 | -4/Extension | Destroyed B-86 Titan 27002 | -4/Extension | Discovered new exit (range 17) 27005 | -4/Extension | Extracted ID and sensor layout for unrecognized location from A7's data core 27348 | -4/Extension | Discovered new exit (range 22) 27348 | -4/Extension | Discovered new exit (range 22) 27432 | -4/Extension | Entered Cetus 27457 | -4/Cetus | Build established: Scavenger-Tank 27466 | -4/Cetus | Spotted Cetus Guard 27467 | -4/Cetus | Spotted Cetus Guard 27468 | -4/Cetus | Spotted Cetus Guard 27468 | -4/Cetus | Spotted Cetus Guard 27477 | -4/Cetus | Destroyed Cetus Guard 27478 | -4/Cetus | Destroyed Cetus Guard 27488 | -4/Cetus | Destroyed Cetus Guard 27494 | -4/Cetus | Destroyed Cetus Guard 27666 | -4/Cetus | Discovered new exit (range 21) 27720 | -4/Cetus | Spotted Cetus Guard 27720 | -4/Cetus | Spotted Cetus Guard 27723 | -4/Cetus | Spotted Cetus Guard 27724 | -4/Cetus | Spotted Cetus Guard 27727 | -4/Cetus | Destroyed Cetus Guard 27734 | -4/Cetus | Destroyed Cetus Guard 27740 | -4/Cetus | Destroyed Cetus Guard 27748 | -4/Cetus | Destroyed Cetus Guard 27778 | -4/Cetus | Discovered new exit (range 22) 27807 | -4/Cetus | Met Revision 17 27818 | -4/Cetus | System corruption reached 30% 27901 | -4/Cetus | Entered Archives 28080 | -4/Archives | Discovered new exit (range 21) 28112 | -4/Archives | Discovered new exit (range 22) 28180 | -4/Archives | Discovered new exit (range 21) 28683 | -4/Archives | Entered Hub_04(d) 28709 | -4/Hub_04(d) | Found Unknown Device 28709 | -4/Hub_04(d) | Identified Quantum Capacitor 28863 | -4/Hub_04(d) | Discovered new exit (range 3) 29055 | -4/Hub_04(d) | Garrison activated, responded to threat 29078 | -4/Hub_04(d) | Discovered new exit (range 20) 29345 | -4/Hub_04(d) | Found Prototype Device 29355 | -4/Hub_04(d) | Destroyed 10 combat bots 29427 | -4/Hub_04(d) | Discovered new exit (range 8) 29570 | -4/Hub_04(d) | Destroyed 9 combat bots 29571 | -4/Hub_04(d) | Lost 4 parts (2p1u1w) 29575 | -4/Hub_04(d) | Network Hub disabled 29588 | -4/Hub_04(d) | Spotted Lightning 29588 | -4/Hub_04(d) | Spotted Lightning 29590 | -4/Hub_04(d) | Spotted Lightning 29591 | -4/Hub_04(d) | Network Hub disabled 29594 | -4/Hub_04(d) | Incoming investigation squad redirected 29595 | -4/Hub_04(d) | Entered Research 29595 | -3/Research | Evolved 2 slots: Power x1, Weapon x1 29596 | -3/Research | Identified exit to Testing 29597 | -3/Research | Identified exit to Research 29597 | -3/Research | Identified exit to Armory 29598 | -3/Research | Loaded intel: 86 trap records 29626 | -3/Research | Lost 3 parts (1u2w) 29795 | -3/Research | Revision forces began assault on 0b10 29796 | -3/Research | Lost 3 parts (1p2u) 29816 | -3/Research | Met up with Revision 17++ 29968 | -3/Research | Build established: Scavenger-Executioner 30295 | -3/Research | Research terminal network offline 30331 | -3/Research | Build established: Scavenger-Tank 30589 | -3/Research | Spotted Striker 30630 | -3/Research | Lost 5 allies 30677 | -3/Research | Entered Armory 30889 | -3/Armory | System corruption reached 10% 30907 | -3/Armory | Lost 5 parts (1p1n1u2w) 31334 | -3/Armory | Build established: Mutant 31343 | -3/Armory | System corruption reached 30% 31677 | -3/Armory | First assault squad dispatched 31879 | -3/Armory | Build established: Executioner 31901 | -3/Armory | Destroyed 7 combat bots 31912 | -3/Armory | Core integrity fell below 50% 31946 | -3/Armory | Lost 8 parts (1p1n3u3w) 31981 | -3/Armory | Discovered exit to Research (range 20) 32124 | -3/Armory | Spotted B-86 Titan 32189 | -3/Armory | Destroyed B-86 Titan 32354 | -3/Armory | Build established: Scavenger-Executioner 32464 | -3/Armory | Destroyed 7 combat bots 32510 | -3/Armory | Incoming assault squad redirected 32520 | -3/Armory | Core integrity fell below 20% 32552 | -3/Armory | Lost 13 parts (1p1n5u6w) 32787 | -3/Armory | Destroyed 8 combat bots 32791 | -3/Armory | Lost 5 parts (1p2u2w) 32845 | -3/Armory | High security lockdown imminent 32925 | -3/Armory | High security lockdown engaged 32988 | -3/Armory | Discovered new exit (range 3) 33014 | -3/Armory | Entered Lab 33063 | -3/Lab | Discovered exit to Research (range 9) 33109 | -3/Lab | Hidden lab's door opened automatically 33109 | -3/Lab | Sensor layout match revealed 33110 | -3/Lab | Gained access to the hidden lab's interior 33158 | -3/Lab | Found Integrated Dissipator 33158 | -3/Lab | Installed Integrated Dissipator, increased core heat dissipation (+20) 33217 | -3/Lab | Build established: Mutant 33317 | -3/Lab | Found Alien Artifact 33325 | -3/Lab | Found Transdimensional Reconstructor 33329 | -3/Lab | Found Alien Artifact 33433 | -3/Lab | Found Prototype Energy Cannon 33435 | -3/Lab | Found Prototype Energy Gun 33437 | -3/Lab | Found Prototype Protection 33439 | -3/Lab | Found Prototype Hackware 33562 | -3/Lab | Identified Exp. Powered Armor 33564 | -3/Lab | Entered Research 33564 | -2/Research | Evolved 2 slots: Weapon x2 33610 | -2/Research | Identified Hyp. EM Gauss Rifle 33670 | -2/Research | Identified Warp Cannon 33690 | -2/Research | Warped through subspace 33757 | -2/Research | Identified exit to Access 33764 | -2/Research | Lost 7 parts (2p2n2u1w) 33827 | -2/Research | Found Imp. Powered Armor 33830 | -2/Research | Found Imp. Powered Armor 33833 | -2/Research | Found Imp. Powered Armor 34221 | -2/Research | Garrison activated, responded to threat 34272 | -2/Research | System corruption reached 10% 34307 | -2/Research | Destroyed 12 combat bots 34314 | -2/Research | First assault squad dispatched 34364 | -2/Research | Loaded intel: 5 recycling unit locations 34425 | -2/Research | Identified Core Expander 34425 | -2/Research | Installed Core Expander, added new Power slot 34448 | -2/Research | Identified Deep Network Scanner 34453 | -2/Research | Identified Core Reset Matrix 34453 | -2/Research | Used Core Reset Matrix 34461 | -2/Research | Core integrity fell below 50% 34490 | -2/Research | Lost 7 parts (1p3n2u1w) 34502 | -2/Research | Emitted hypermatrix ping 34507 | -2/Research | Assembled emerged from beneath the floor 34509 | -2/Research | Assembled emerged from beneath the floor 34553 | -2/Research | Identified exit to Quarantine 34642 | -2/Research | Lost 4 allies 34659 | -2/Research | Spotted B-90 Cyclops 34669 | -2/Research | Core integrity fell below 20% 34671 | -2/Research | Entered Quarantine 34672 | -2/Quarantine | Detected hypermatrix surge 34672 | -2/Quarantine | Sensed 15 artifacts in vicinity 34712 | -2/Quarantine | Build established: Hacker-Mutant 34713 | -2/Quarantine | Found Subatomic Replicator 34785 | -2/Quarantine | Destroyed by P-80 Master with Gamma Rifle Last Messages --------------- 34757_ Ion Accelerator explodes. 34759_ Imp. Heavy Treads destroyed. 34759_ Destroyed Unknown Engine. 34759_ M-36 Artificer destroyed. 34760_ ZT%9 |/MTPWANZRCTSGMQZJPZ9GAIT4B0FMK 8QP 34760_ The unstable cave ceiling collapses. 34760_ P-80 Master resets P-80 Master, system corruption cleaned. 34762_ Centrium Leg destroyed. 34763_ P-80 Master resets P-80 Master, system corruption cleaned. 34768_ Ion Accelerator explodes. 34768_ Door malfunctions. 34775_ Triggered Alarm Trap. 34775_ An alarm sounds. 34775_ ALERT: Alarm triggered, dispatching investigation squad. 34779_ ALERT: Hostiles spotted, dispatching reinforcements to Terminal Q007. 34779_ Slammed into A-15 Conveyor. Map ----- +----------------------------------------------------+ | ?????????????????????????????????????????????????? | | ?????????????????????????????????????????????????? | | ?????????????????????????????????????????????????? | | ?????????????????????????????????????????????????? | | ?????????????????????????????????????????????????? | | ?????????????????????????????????????????????????? | | ?????????????????????????????????????????????????? | | ?????????????????????????????????????????????????? | | ?????????????????????????????????????????????????? | | ?????????????????????????????????????????????????? | | ?????????????????????????????????????????????????? | | ?????????????????????????????????????????????????? | | ?????????????????????????????????????????????????? | | ?????????????????????????????????????????????????? | | ?????????????????????????????????????????????????? | | ?????????????????????????????????????????????????? | | ?????????????????????????????????????????????????? | | ?????##########??????????????????????????????????? | | ?????? #??????????????????????????????????? | | #????? #??????????????????????????????????? | | #?????? #??????????????????????????????????? | | #??????? #??????????????????????????????????? | | #??????"""" #??????????????????????????????????? | | #????""""""" #??????????????????????????????????? | | #????""""""" ################## #???????????????? | | #??"!""!""!" p/ @ #???????????????? | | # """"""""" ####################???????????????? | | # #??????????????????????????????????? | | # #??????????????????????????????????? | | #####+######+#####???????????????????????????????? | | #???????????????????????????????? | | #???????????????????????????????? | | #???????????????????????????????? | | #???????????????????????????????? | | ###########+######???????????????????????????????? | | #???? ???????????????????????????????????? | | #?? ?????????????????????????????????? | | ## ???????????????????????????????? | | ] ## ""?????????????????????????????? | | # """ """ """????????????????????????????? | | % ## """ """ R"????????????????????????????? | | ## """ """ """????????????????????????????? | | # "" ????????????????????????????? | | # ?"" "????##?????????????????????????????? | | # ???? "???????????????????????????????????? | | # ????? "???????????????????????????????????? | | #?????? ????????????????????????????????????? | | ##???????????????????????????????????????????? | | | | | +----------------------------------------------------+ Best States ------------- Heat Dissipation 156 Coolant Potential 100 Energy Generation 75 Energy Capacity 940 Matter Stores 300 Matter Capacity 300 Sight Range 22 Terrain Scan Range 24 Terrain Scan Density 85 Jamming Range 22 Power Amplification 30 Base Temperature (-) 150 Corruption Containment 12 Armor Coverage 2400 Resistance: KI 20 Resistance: TH 30 Resistance: EM 15 Core Shielding 30 Utility Shielding 66 Weapon Cycling 15 Evasion (%) 55 Target Analysis 8 Core Analysis 6 Recoil Reduction 4 Particle Charging 30 Offensive Hacking 49 Defensive Hacking 14 Authchip Count 4 Item Schematics ----------------- None Robot Schematics ------------------ None Fabricated ------------ Nothing Repaired ---------- Lgt. Treads | 55% | -10/Materials Lgt. Treads | 57% | -10/Materials Adv. Plasma Cannon | 56% | -5/Factory Alien Tech Used ----------------- Integrated Dissipator Transdimensional Reconstructor Core Expander Core Reset Matrix Achievements -------------- None Challenges ------------ None Game ------ Seed AccelerationRapidWarhead Manual? 0 Play Time 03:36:37 Cumulative 1013.2 hours Start 2025.06.21 @ 15:58:28 End 2025.06.21 @ 20:06:01 Sessions 1 Manual Loads 0 Difficulty Rogue Special Mode None Game No. 604 Rogue 597 Adventurer 0 Explorer 7 Win Type - Total 67 Types 23/6/26/2/0/1/6/1/2/0 Lore% 92 Gallery% 93 Achievement% 85 Wizard Run 0 Options --------- Layout 1 ASCII 0 Keyboard 0 Movement Mouse Keybinds 0 Fullscreen 2 Font 24/Smallcaps Map View 50x35 Zoom Use 0% Tactical HUD 1 Map Filters NONE Filters NONE Steam 1 RUN: 4e8be75c-0244-4fdd-be70-5e37da9a3e6b